[Event "Turkish-ch Youth U17 2024"]
[Site "Belek Antalya"]
[Date "2024.01.25"]
[Round "7"]
[White "Orhon, Bora"]
[Black "Aydemir, Umut"]
[Result "1-0"]
[ECO "C47"]
[WhiteElo "1937"]
[BlackElo "1953"]
[Annotator "TA"]
[PlyCount "97"]
[EventDate "2024.01.21"]
[EventType "swiss"]
[EventCountry "TUR"]
[SourceTitle "playchess.com"]
[Source "ChessBase"]
[SourceQuality "1"]
[TimeControl "5400+30"]

{[%evp 9,96,0,0,-7,25,0,0,0,0,-2,0,-1,0,0,-6,-4,-13,-18,-17,-7,-12,-11,0,0,0,0,0,0,0,-33,-49,-55,0,-79,-79,-90,-95,-92,-93,-107,-6,-200,-197,-187,-197,-290,-287,-259,-229,-257,-35,-223,-220,-264,-257,-245,-253,-259,-260,-289,-279,-288,-288,-316,-316,-316,-292,-316,-310,-316,-316,-370,-369,-362,-362,-361,-119,-125,-143,-124,0,0,0,0,29994,29995,29998,29999,29999]} 1. e4 {[%emt 0:01:00]} e5 {[%emt 0:02:00]} 2. Nf3 {[%emt 0:00:30]} Nc6 {[%emt 0:00:30]} 3. Nc3 {[%emt 0:00:30]} Nf6 {[%emt 0:00:30]} 4. h3 {[%emt 0:00:00]} Bb4 {[%emt 0:01:30]} 5. Bd3 {[%emt 0:00:00]} O-O {[%emt 0:07:30]} 6. O-O {[%emt 0:00:30]} h6 {[%emt 0:01:30]} 7. Re1 {[%emt 0:03:30]} Bc5 {[%emt 0:02:30]} 8. a3 {[%emt 0:07:30] The position is equal.} a6 {[%emt 0:04:30]} 9. b4 {[%emt 0:07:30]} Ba7 {[%emt 0:01:30]} 10. Bc4 {[%emt 0:11:30]} d6 {[%emt 0:01:30]} 11. d3 {[%emt 0:02:30]} Be6 {[%emt 0:02:30]} 12. Nd5 {[%emt 0:13:30]} Bxd5 {[%emt 0:00:30]} 13. Bxd5 {[%emt 0:00:30]} Nxd5 {[%emt 0:00:30]} 14. exd5 {[%emt 0:00:30]} Ne7 {[%emt 0:07:30]} 15. c4 {[%emt 0:03:30]} Nf5 {[%emt 0:07:30]} 16. Bb2 {[%emt 0:09:30]} Re8 {[%emt 0:04:30]} 17. Rc1 {[%emt 0:05:30]} Qd7 {[%emt 0:06:30]} 18. Qd2 {[%emt 0:09:30]} Rad8 {[%emt 0:03:30]} 19. Re2 {[%emt 0:01:30]} Ng3 {[%emt 0:00:30]} 20. Ree1 {[%emt 0:00:30]} Nf5 {[%emt 0:00:30]} (20... Nh5 $15) 21. c5 {[%emt 0:09:55]} (21. Re2 $11 {remains equal.}) 21... dxc5 {[%emt 0:00:30]} 22. Nxe5 {[%emt 0:00:45]} Qxd5 {[%emt 0:02:30]} 23. Qf4 {[%emt 0:00:29] Repels Nh4} Nd6 {[%emt 0:02:30]} 24. Qg4 {[%emt 0:03:35][%cal Oe5c6] aiming for Nc6!} Qe6 {[%emt 0:04:30]} (24... cxb4 25. Nc6 g5 (25... Rxe1+ $2 26. Rxe1 Qg5 27. Qxg5 $18) 26. Nxd8 (26. Nxa7 bxa3 27. Bxa3 Qxd3 $16) 26... Rxe1+ 27. Rxe1 $18) (24... h5 $1 $17 {[%cal Rh5g4]} 25. Qxh5 f6) 25. Qf3 {[%emt 0:01:43]} (25. bxc5 $11 {and White has nothing to worry.} Qxg4 26. hxg4) 25... cxb4 $19 {[%emt 0:06:30]} 26. axb4 {[%emt 0:00:05]} c6 {[%emt 0:00:30]} 27. Ng4 {[%emt 0:01:12]} (27. Qd1 $142) 27... Qxe1+ {[%emt 0:03:30]} 28. Rxe1 {[%emt 0:00:30]} Rxe1+ {[%emt 0:00:30]} 29. Kh2 {[%emt 0:00:30][%cal Ob2g7]} Bb8 $2 {[%emt 0:00:30]} ({Better is} 29... Re6 $19 {...Ne8 would now be deadly.} 30. Ne3 Bb8) 30. g3 $2 {[%emt 0:00:30]} (30. Be5 $1 $15) 30... Re6 $1 {[%emt 0:00:30]} 31. h4 {[%emt 0:00:44]} Nb5 {[%emt 0:01:30]} 32. Ne3 {[%emt 0:02:26]} Be5 {[%emt 0:01:30]} (32... Rxd3 33. Qg4 g6 34. h5 $11) 33. Bxe5 {[%emt 0:00:30]} Rxe5 {[%emt 0:00:00]} 34. Qf4 {[%emt 0:00:42] [#]} Nd4 $1 {[%emt 0:02:00]} 35. Kg2 {[%emt 0:00:50]} (35. Qxe5 $2 {loses.} Nf3+ 36. Kh3 Nxe5 $19) (35. Kh3 Rb5) 35... Re7 {[%emt 0:00:30]} 36. h5 {[%emt 0:00:30]} Ne6 {[%emt 0:00:30][%csl LRd3,LRf4]} 37. Qg4 {[%emt 0:00:30]} Kh7 {[%emt 0:00:30]} (37... Rxd3 38. Nf5 Red7 39. Nxh6+ Kh8 40. Nxf7+ Rxf7 41. Qxe6 $17) 38. Qe4+ {[%emt 0:00:59] [#]} Kh8 $1 {[%emt 0:00:30]} 39. Nf5 {[%emt 0:00:30]} Red7 {[%emt 0:00:30]} 40. Qe5 {[%emt 0:02:00]} Rd5 {[%emt 0:00:30]} (40... Rxd3 41. Nxh6 R8d7 42. f4 $11 (42. Nxf7+ Rxf7 43. Qxe6 Rdf3 $15)) 41. Qe4 {[%emt 0:00:30]} Rxd3 {[%emt 0:00:00]} 42. Ne7 {[%emt 0:00:01]} R8d7 $2 {[%emt 0:01:00]} (42... R3d7 $19 43. Nf5 Rd5) 43. Qf5 $17 {[%emt 0:00:25]} Ng5 {[%emt 0:01:30][%cal Od3d1]} 44. Qe5 {[%emt 0:00:13][%cal Oe7g6] [#] And now Ng6+! would win.} Ne6 {[%emt 0:01:30]} (44... Rd8 $1 $17 {White must now prevent ...Rd1.} 45. Nf5 f6) 45. Qf5 $1 $11 {[%emt 0:00:56] The board is on fire.} Nd8 {[%emt 0:03:25][%cal Od3d4]} 46. Qe5 {[%emt 0:00:04][%cal Oe7g6] Ng6+! would kill now.} Rd1 $2 {[%emt 0:08:19][%mdl 8192] [#]} (46... Ne6 $11 47. Qf5) 47. Ng6+ $1 {[%emt 0:00:06][%mdl 512] White mates.} fxg6 {[%emt 0:03:55]} (47... Kh7 48. Qe8) 48. Qe8+ {[%emt 0:00:30]} Kh7 {[%emt 0:00:30]} 49. hxg6# {[%emt 0:00:30] Weighted Error Value: White=0.24 (precise) /Black=0.39.  Loses game:     	White=2     	Black=1      Missed win:     	---       	Black=2      Mistake:       	White=2     	Black=3      Inaccurate:     	White=1     	Black=1      OK:         	White=12    	Black=21     Best:        	White=3     	Black=1      Strong:       	White=1     	Black=2      Brilliant:      	White=1     	---} 1-0

[Event "Turkish-ch Youth U17 2024"]
[Site "Belek Antalya"]
[Date "2024.01.25"]
[Round "7"]
[White "Akat, Elifnaz"]
[Black "Sozat, Beren"]
[Result "1-0"]
[ECO "C54"]
[WhiteElo "1849"]
[BlackElo "1103"]
[Annotator "NA RC COMBH"]
[PlyCount "73"]
[EventDate "2024.01.21"]
[EventType "swiss"]
[EventCountry "TUR"]
[SourceTitle "playchess.com"]
[Source "ChessBase"]
[SourceQuality "1"]
[TimeControl "5400+30"]

1. e4 {[%emt 0:01:00]} e5 {[%emt 0:01:00]} 2. Nf3 {[%emt 0:00:30]} Nc6 {[%emt 0:00:00]} 3. Bc4 {[%emt 0:00:30]} Bc5 {[%emt 0:00:00]} 4. d3 {[%emt 0:00:30]} h6 {[%emt 0:00:30]} 5. c3 {[%emt 0:00:30]} d6 {[%emt 0:00:30]} 6. a4 {[%emt 0:00:30]} a6 {[%emt 0:00:30]} 7. O-O {[%emt 0:00:30]} Nf6 {[%emt 0:00:30]} 8. a5 {[%emt 0:00:30] C54: Italienische Partie (Hauptvariante).} O-O {[%emt 0:00:30]} 9. Nbd2 {[%emt 0:00:30]} Ne7 {[%emt 0:00:30]} 10. d4 {[%emt 0:02:30]} exd4 {[%emt 0:00:30]} 11. cxd4 {[%emt 0:00:30]} Ba7 {[%emt 0:00:30]} 12. Qc2 {[%emt 0:02:30]} Be6 {[%emt 0:05:30]} 13. e5 {[%emt 0:07:30]} dxe5 {[%emt 0:09:30]} 14. dxe5 {[%emt 0:00:30]} Nfd5 {[%emt 0:02:30]} 15. Rd1 {[%emt 0:06:30]} Qc8 {[%emt 0:02:30]} 16. Ne4 {[%emt 0:01:30]} Kh8 {[%emt 0:18:30]} 17. Qb3 {[%emt 0:07:30]} Rd8 {[%emt 0:02:30]} 18. Bd2 {[%emt 0:01:30]} Bg4 {[%emt 0:10:30]} 19. Rac1 $11 {[%emt 0:05:30]} Bxf3 {[%emt 0:06:30]} 20. Qxf3 {[%emt 0:00:00]} Qf5 {[%emt 0:00:30]} 21. Qxf5 {[%emt 0:01:00]} Nxf5 {[%emt 0:00:30]} 22. Bg5 {[%emt 0:05:30]} hxg5 {[%emt 0:09:30]} 23. Rxd5 {[%emt 0:00:30]} Rxd5 {[%emt 0:00:30]} 24. Bxd5 {[%emt 0:00:30]} c6 {[%emt 0:00:30]} 25. Bxf7 {[%emt 0:00:30]} Bd4 {[%emt 0:00:30]} 26. e6 {[%emt 0:05:30]} Ne7 {[%emt 0:03:30]} 27. Nxg5 {[%emt 0:00:30]} Rb8 {[%emt 0:03:30]} 28. Rd1 {[%emt 0:07:30]} Bxb2 {[%emt 0:05:40]} 29. Rd3 {[%emt 0:00:30]} Nf5 {[%emt 0:04:04]} 30. Bg6 {[%emt 0:04:30]} Ne7 {[%emt 0:04:04]} 31. Rh3+ {[%emt 0:00:30]} Kg8 {[%emt 0:00:30]} 32. Bf7+ {[%emt 0:00:30]} Kf8 {[%emt 0:00:30]} 33. Rh8+ {[%emt 0:00:30]} Ng8 {[%emt 0:00:00]} 34. Rxg8+ {[%emt 0:00:00]} Ke7 {[%emt 0:00:00]} 35. Rxb8 {[%emt 0:00:00]} Ba3 {[%emt 0:01:04]} 36. Ne4 {[%emt 0:00:00]} c5 {[%emt 0:01:08]} 37. Re8# {[%emt 0:00:00]} 1-0

[Event "Turkish-ch Youth U17 2024"]
[Site "Belek Antalya"]
[Date "2024.01.25"]
[Round "7"]
[White "Gursu, Sungur"]
[Black "Sezis, Doruk"]
[Result "0-1"]
[ECO "D02"]
[WhiteElo "1783"]
[BlackElo "2001"]
[Annotator "TA"]
[PlyCount "102"]
[EventDate "2024.01.21"]
[EventType "swiss"]
[EventCountry "TUR"]
[SourceTitle "playchess.com"]
[Source "ChessBase"]
[SourceQuality "1"]
[TimeControl "5400+30"]

{[%evp 15,102,-45,-18,-60,-51,-54,-44,-54,-56,-62,-39,-47,-25,-35,-20,-38,-26,-43,-36,-56,-8,-64,-53,-83,-74,-63,0,0,0,0,0,0,7,6,7,0,107,0,0,-12,0,-46,-31,-41,-35,-350,-275,-258,-279,-271,-234,-250,-172,-256,-236,-277,-288,-285,-283,-837,-859,-856,-852,-1067,-1020,-29976,-29978,-29978,-29979,-29977,-29970,-29973,-29976,-29977,-29978,-29979,-29980,-29980,-29981,-29987,-29983,-29983,-29983,-29983,-29984,-29984,-29985,-29985,-29985]} 1. d4 {[%emt 0:02:00]} Nf6 {[%emt 0:01:00]} 2. Bf4 {[%emt 0:00:30]} d5 {[%emt 0:00:30]} 3. e3 {[%emt 0:00:30]} c5 {[%emt 0:00:00]} 4. Nf3 {[%emt 0:02:30]} Nc6 {[%emt 0:00:00]} 5. c3 {[%emt 0:04:30]} Qb6 {[%emt 0:00:30]} 6. Qb3 {[%emt 0:01:30]} c4 {[%emt 0:00:30]} 7. Qc2 {[%emt 0:00:00]} Bf5 {[%emt 0:00:30]} 8. Qc1 {[%emt 0:00:00]} e6 {[%emt 0:00:30] White is weak on the light squares} 9. h4 {[%emt 0:06:30]} Be7 {[%emt 0:14:30]} 10. Nbd2 {[%emt 0:02:30]} O-O {[%emt 0:01:30]} 11. Be2 {[%emt 0:06:30] Black is slightly better.} h6 {[%emt 0:11:30]} 12. Ne5 {[%emt 0:12:30]} Nxe5 {[%emt 0:00:30]} 13. Bxe5 {[%emt 0:00:30]} Rfc8 {[%emt 0:03:30]} 14. Bxf6 {[%emt 0:33:30]} Bxf6 {[%emt 0:00:30]} 15. g4 {[%emt 0:00:00]} Bh7 {[%emt 0:01:30]} 16. f4 {[%emt 0:06:45]} Be7 {[%emt 0:22:30][%cal Oe6e5]} 17. g5 {[%emt 0:00:47]} f6 {[%emt 0:01:30]} (17... e5 $15 18. fxe5 hxg5) 18. Nf3 {[%emt 0:07:44]} (18. Bh5 $11 Bd3 (18... hxg5 19. hxg5 fxg5 20. Nf3 $15) 19. Nf3) 18... Be4 $15 {[%emt 0:08:30]} 19. Rg1 {[%emt 0:00:36]} hxg5 {[%emt 0:08:30] Black is much more active.} 20. hxg5 {[%emt 0:00:13]} Kf7 {[%emt 0:00:30]} ({Black should try} 20... fxg5 $15 21. Qd2 (21. Nxg5 Bxg5 22. Rxg5 Kf7 $17) 21... gxf4 22. exf4 Rc6) 21. Nd2 {[%emt 0:03:38] [#] Hoping for Nxe4.} Bg6 {[%emt 0:00:30]} 22. gxf6 {[%emt 0:00:25]} gxf6 {[%emt 0:00:30]} 23. e4 {[%emt 0:02:13][%cal Of4f5] f5! is the strong threat.} Rh8 {[%emt 0:03:02] [#]} (23... Bxe4 $2 24. Bh5+ $18) (23... dxe4 $2 24. f5 exf5 (24... Bxf5 $2 25. Bh5+ $18) 25. Nxc4 $18) 24. f5 $1 {[%emt 0:01:08]} exf5 {[%emt 0:00:30]} 25. exd5 {[%emt 0:00:00]} (25. Nxc4 {is more complex.} Qc7 26. Ne3 Qh2 27. Kd2) 25... Qd6 {[%emt 0:03:17]} (25... Qc7 $11 26. Qc2 Qh2) 26. Qc2 {[%emt 0:03:13]} ({White has to play} 26. Nxc4 $16 Qxd5 27. Qf4) 26... b5 $11 {[%emt 0:07:34][%cal Od6h2]} (26... Qxd5 $2 27. Bxc4 $18 (27. Nxc4 Rh6 $16) (27. Nxc4 Rh6 $16)) 27. O-O-O {[%emt 0:01:04] Strongly threatening a4.} Rag8 $1 {[%emt 0:00:18][%cal Oe7f8]} (27... Qxd5 28. Bf3 Qd7 29. Rxg6 (29. Bxa8 Rxa8 30. Nf3 Rh8 $18) 29... Kxg6 30. Bxa8 Rxa8 31. Nxc4 $18) 28. Bf3 {[%emt 0:00:20]} (28. Rde1 $11) 28... Rh2 {[%emt 0:00:40]} 29. Rde1 {[%emt 0:01:29]} Bf8 {[%emt 0:04:34] aiming for ...Bh6. Chess con chili.} 30. Rxg6 {[%emt 0:01:27][%mdl 8192] This costs White the game.} Rxg6 {[%emt 0:00:48]} 31. Qxf5 {[%emt 0:00:18] And now Ne4 would win.} Bh6 {[%emt 0:00:21]} 32. Re2 {[%emt 0:00:53]} Rxe2 {[%emt 0:02:55]} 33. Bxe2 {[%emt 0:00:01]} Kg7 $40 {[%emt 0:00:39][%mdl 128] Black goes for the king.} 34. Kc2 {[%emt 0:01:02]} (34. Kd1 $142) 34... Qf4 $19 {[%emt 0:02:10]} 35. Qxf4 {[%emt 0:00:42]} Bxf4 {[%emt 0:00:30][%mdl 4096] Endgame. KRB-KBN} 36. Bf3 {[%emt 0:00:00] Against Rg2} Rg3 {[%emt 0:00:00]} 37. Be2 $2 {[%emt 0:00:58]} (37. d6 Bxd6 38. Bd5) 37... Rg2 {[%emt 0:00:42]} 38. Kd1 {[%emt 0:00:27]} Bxd2 {[%emt 0:00:31]} 39. Kxd2 {[%emt 0:00:30] KR-KB} Kf7 {[%emt 0:00:09]} 40. b3 {[%emt 0:00:13]} cxb3 {[%emt 0:00:30] Black mates.} 41. axb3 {[%emt 0:00:30]} a5 {[%emt 0:00:05]} 42. Ke3 {[%emt 0:00:55]} a4 {[%emt 0:00:09]} 43. Bh5+ {[%emt 0:00:31]} Ke7 {[%emt 0:00:10]} 44. bxa4 {[%emt 0:00:29]} bxa4 {[%emt 0:00:07]} 45. d6+ {[%emt 0:00:33]} Kxd6 {[%emt 0:00:30]} 46. Bf7 {[%emt 0:00:30]} a3 {[%emt 0:00:00]} 47. c4 {[%emt 0:00:02]} a2 {[%emt 0:00:07]} 48. c5+ {[%emt 0:00:30]} Kc7 {[%emt 0:00:00]} 49. Bxa2 {[%emt 0:00:00]} Rxa2 {[%emt 0:00:00]} 50. Ke4 {[%emt 0:00:32]} Kc6 {[%emt 0:00:00]} 51. Kf5 {[%emt 0:00:29]} Rd2 {[%emt 0:00:03] Weighted Error Value: White=0.49/Black=0.13 (very precise) .  Loses game:     	White=1     	---        Mistake:       	White=5     	Black=3      Inaccurate:     	White=1     	Black=1      OK:         	White=6     	Black=12     Best:        	White=2     	Black=2      Strong:       	---       	Black=1} 0-1

[Event "Turkish-ch Youth U17 2024"]
[Site "Belek Antalya"]
[Date "2024.01.25"]
[Round "7"]
[White "Dirican, Feride"]
[Black "Alagoz, Zumra Meryem"]
[Result "0-1"]
[ECO "B22"]
[WhiteElo "1492"]
[BlackElo "1706"]
[Annotator "NA RC COMBH"]
[PlyCount "128"]
[EventDate "2024.01.21"]
[EventType "swiss"]
[EventCountry "TUR"]
[SourceTitle "playchess.com"]
[Source "ChessBase"]
[SourceQuality "1"]
[TimeControl "5400+30"]

1. e4 {[%emt 0:06:00]} c5 {[%emt 0:01:00]} 2. Nf3 {[%emt 0:00:30]} e6 {[%emt 0:00:30]} 3. c3 {[%emt 0:00:30]} Nf6 {[%emt 0:00:30]} 4. e5 {[%emt 0:01:30]} Nd5 {[%emt 0:00:30]} 5. d4 {[%emt 0:04:30]} cxd4 {[%emt 0:00:30]} 6. cxd4 {[%emt 0:00:30]} d6 {[%emt 0:02:30]} 7. Nc3 {[%emt 0:00:30]} Nxc3 {[%emt 0:03:30]} 8. bxc3 {[%emt 0:00:00]} Qc7 {[%emt 0:04:30]} 9. Bd2 {[%emt 0:06:00]} Nc6 {[%emt 0:01:30]} 10. exd6 {[%emt 0:05:30]} Bxd6 {[%emt 0:00:00]} 11. Bd3 {[%emt 0:00:30]} e5 {[%emt 0:26:00]} 12. dxe5 {[%emt 0:15:30]} Nxe5 {[%emt 0:00:30]} 13. Bb5+ {[%emt 0:01:30]} Bd7 {[%emt 0:02:30]} 14. Bxd7+ {[%emt 0:04:30]} Qxd7 {[%emt 0:00:30]} 15. Nxe5 {[%emt 0:02:30]} Bxe5 {[%emt 0:00:00]} 16. O-O {[%emt 0:04:30]} O-O {[%emt 0:02:00]} 17. Qc2 {[%emt 0:02:30]} Rac8 {[%emt 0:05:30]} 18. Rab1 {[%emt 0:06:30]} Rc6 {[%emt 0:09:30]} 19. Rfe1 {[%emt 0:02:30]} Qc7 {[%emt 0:03:30]} 20. h3 {[%emt 0:10:30]} b6 {[%emt 0:06:30]} 21. Re3 {[%emt 0:02:30]} g6 {[%emt 0:07:30]} 22. Rbe1 {[%emt 0:00:30]} Bf6 {[%emt 0:00:30]} 23. Qc1 {[%emt 0:06:43]} Qd7 {[%emt 0:02:30]} 24. Rf3 {[%emt 0:02:55]} Rfc8 {[%emt 0:09:28]} 25. Ree3 {[%emt 0:00:40]} Rd6 {[%emt 0:01:11]} 26. Re1 {[%emt 0:05:52]} Rxd2 {[%emt 0:00:30]} 27. Rxf6 {[%emt 0:00:02]} Kg7 {[%emt 0:02:56]} 28. Rf3 {[%emt 0:00:05]} Rc6 {[%emt 0:02:16]} 29. Qa3 {[%emt 0:03:52]} Rc5 {[%emt 0:02:42]} 30. c4 {[%emt 0:02:43]} Rc7 {[%emt 0:01:15]} 31. Qe3 {[%emt 0:00:59]} Qd4 {[%emt 0:00:50]} 32. Qe8 {[%emt 0:01:45]} Rd1 {[%emt 0:00:28]} 33. Rxd1 {[%emt 0:01:26]} Qxd1+ {[%emt 0:00:30]} 34. Kh2 {[%emt 0:00:30]} Qd6+ {[%emt 0:00:30]} 35. g3 {[%emt 0:00:30]} Re7 {[%emt 0:00:30]} 36. Qa4 {[%emt 0:00:00]} h5 {[%emt 0:02:00]} 37. Qa3 {[%emt 0:00:00]} Qxa3 {[%emt 0:00:43]} 38. Rxa3 {[%emt 0:00:02]} Kf6 {[%emt 0:00:38]} 39. Kg2 {[%emt 0:00:14]} Rc7 {[%emt 0:00:18]} 40. Kf3 {[%emt 0:01:29]} Ke5 {[%emt 0:00:30]} 41. Ke3 {[%emt 0:00:30]} g5 {[%emt 0:00:25]} 42. f4+ {[%emt 0:00:44]} gxf4+ {[%emt 0:00:30]} 43. gxf4+ {[%emt 0:00:31]} Kf5 {[%emt 0:00:00]} 44. Ra4 {[%emt 0:01:09]} f6 {[%emt 0:00:00]} 45. Kf3 {[%emt 0:00:01]} a5 {[%emt 0:00:48]} 46. Ke3 {[%emt 0:00:41]} Re7+ {[%emt 0:01:25]} 47. Kd4 {[%emt 0:00:28]} Kxf4 {[%emt 0:00:12]} 48. Kd5 {[%emt 0:00:08]} Kg3 {[%emt 0:01:11]} 49. Ra3+ {[%emt 0:00:06]} Kg2 {[%emt 0:00:34]} 50. Kc6 {[%emt 0:00:30]} Re6+ {[%emt 0:00:30]} 51. Kd5 {[%emt 0:00:30]} Re5+ {[%emt 0:00:30]} 52. Kc6 {[%emt 0:00:01]} f5 {[%emt 0:00:00]} 53. Kxb6 {[%emt 0:00:30]} f4 {[%emt 0:00:00]} 54. Rd3 {[%emt 0:02:03]} f3 {[%emt 0:00:00]} 55. Rd8 {[%emt 0:00:03]} Rf5 {[%emt 0:01:08]} 56. c5 {[%emt 0:00:30]} f2 {[%emt 0:00:30]} 57. Rd2 {[%emt 0:00:00]} Kxh3 {[%emt 0:00:00]} 58. Rd3+ {[%emt 0:01:01]} Kg2 {[%emt 0:00:28]} 59. Rd2 {[%emt 0:00:30]} Kg1 {[%emt 0:00:00]} 60. Rd1+ {[%emt 0:00:00]} f1=Q {[%emt 0:00:09]} 61. Rxf1+ {[%emt 0:00:00]} Kxf1 {[%emt 0:00:21]} 62. c6 {[%emt 0:00:18]} h4 {[%emt 0:00:11]} 63. c7 {[%emt 0:00:35]} Rf8 {[%emt 0:00:04]} 64. a4 {[%emt 0:00:37]} h3 {[%emt 0:00:04]} 0-1

[Event "Turkish-ch Youth U17 2024"]
[Site "Belek Antalya"]
[Date "2024.01.25"]
[Round "7"]
[White "Dincer, Cagla"]
[Black "Kayis, Merve"]
[Result "0-1"]
[ECO "C28"]
[WhiteElo "1367"]
[BlackElo "1510"]
[Annotator "NA RC COMBH"]
[PlyCount "116"]
[EventDate "2024.01.21"]
[EventType "swiss"]
[EventCountry "TUR"]
[SourceTitle "playchess.com"]
[Source "ChessBase"]
[SourceQuality "1"]
[TimeControl "5400+30"]

1. e4 {[%emt 0:01:00]} e5 {[%emt 0:01:00]} 2. Nc3 {[%emt 0:00:30]} Nc6 {[%emt 0:00:30]} 3. Bc4 {[%emt 0:00:30]} Nf6 {[%emt 0:00:00]} 4. d3 {[%emt 0:00:00]} Na5 {[%emt 0:01:00]} 5. a3 {[%emt 0:03:00]} Nxc4 {[%emt 0:00:30]} 6. dxc4 {[%emt 0:00:00]} Be7 {[%emt 0:03:30]} 7. Qd3 {[%emt 0:00:00]} O-O {[%emt 0:02:30]} 8. h3 {[%emt 0:11:30]} d6 {[%emt 0:06:30]} 9. Be3 {[%emt 0:03:30]} c6 {[%emt 0:03:30]} 10. O-O-O {[%emt 0:00:30]} Nh5 {[%emt 0:04:30]} 11. Nge2 {[%emt 0:10:30]} f5 {[%emt 0:05:30]} 12. exf5 {[%emt 0:07:30]} Bxf5 {[%emt 0:00:30]} 13. Qd2 {[%emt 0:00:30]} Be6 {[%emt 0:05:30]} 14. g4 {[%emt 0:14:30]} Nf4 {[%emt 0:06:30]} 15. Bxf4 {[%emt 0:01:30]} exf4 {[%emt 0:00:30]} 16. Qd3 {[%emt 0:01:30]} Bf6 {[%emt 0:18:30]} 17. Nd4 {[%emt 0:11:30]} Bf7 {[%emt 0:04:30]} 18. Ne4 {[%emt 0:06:30]} Bxd4 {[%emt 0:09:30]} 19. Qxd4 {[%emt 0:00:00]} d5 {[%emt 0:00:30]} 20. cxd5 {[%emt 0:07:13]} Bxd5 {[%emt 0:07:14]} 21. Rhe1 {[%emt 0:01:03]} Qh4 {[%emt 0:01:11]} 22. Rd2 {[%emt 0:07:34]} Qxh3 {[%emt 0:07:37]} 23. g5 {[%emt 0:01:37]} Rfe8 {[%emt 0:04:36]} 24. Rde2 {[%emt 0:00:43]} Bxe4 {[%emt 0:00:30]} 25. Rxe4 {[%emt 0:00:30]} Rxe4 {[%emt 0:00:30]} 26. Qxe4 {[%emt 0:00:30]} Qd7 {[%emt 0:01:01]} 27. Qxf4 {[%emt 0:02:18]} Rf8 {[%emt 0:01:23]} 28. Qe3 {[%emt 0:00:38]} b6 {[%emt 0:00:42]} 29. Re2 {[%emt 0:01:48]} c5 {[%emt 0:01:23]} 30. Qe4 {[%emt 0:02:12]} Rd8 {[%emt 0:02:22]} 31. Qe6+ {[%emt 0:01:34]} Qxe6 {[%emt 0:00:30]} 32. Rxe6 {[%emt 0:00:30]} Kf7 {[%emt 0:00:30]} 33. Re4 {[%emt 0:00:32]} Rd7 {[%emt 0:00:21]} 34. c3 {[%emt 0:00:47]} Kg6 {[%emt 0:00:30]} 35. Re5 {[%emt 0:00:30]} Rf7 {[%emt 0:00:00]} 36. b4 {[%emt 0:00:00]} cxb4 {[%emt 0:00:00]} 37. axb4 {[%emt 0:00:00]} Rxf2 {[%emt 0:00:28]} 38. Re7 {[%emt 0:00:22]} Rf7 {[%emt 0:00:30]} 39. Re5 {[%emt 0:00:30]} Rf5 {[%emt 0:00:30]} 40. Re7 {[%emt 0:00:00]} a5 {[%emt 0:03:05]} 41. Re6+ {[%emt 0:00:00]} Kxg5 {[%emt 0:00:25]} 42. Rxb6 {[%emt 0:00:12]} axb4 {[%emt 0:00:30]} 43. cxb4 {[%emt 0:00:30]} h5 {[%emt 0:00:00]} 44. b5 {[%emt 0:00:00]} h4 {[%emt 0:00:00]} 45. Rb8 {[%emt 0:00:22]} h3 {[%emt 0:00:00]} 46. Rh8 {[%emt 0:00:00]} Kg4 {[%emt 0:00:00]} 47. b6 {[%emt 0:01:00]} Rb5 {[%emt 0:00:20]} 48. Rh7 {[%emt 0:00:30]} g5 {[%emt 0:00:30]} 49. b7 {[%emt 0:00:30]} Kg3 {[%emt 0:00:35]} 50. Rh5 {[%emt 0:00:00]} Rxb7 {[%emt 0:01:47]} 51. Rxg5+ {[%emt 0:00:00]} Kh2 {[%emt 0:00:00]} 52. Kd1 {[%emt 0:00:29]} Rb2 {[%emt 0:00:00]} 53. Ke1 {[%emt 0:00:51]} Rg2 {[%emt 0:01:31]} 54. Rf5 {[%emt 0:00:28]} Kg3 {[%emt 0:00:58]} 55. Rf8 {[%emt 0:01:13]} Rg1+ {[%emt 0:00:30]} 56. Ke2 {[%emt 0:00:30]} h2 {[%emt 0:00:30]} 57. Rg8+ {[%emt 0:00:00]} Kf4 {[%emt 0:00:00]} 58. Rf8+ {[%emt 0:02:08]} Ke5 {[%emt 0:00:03]} 0-1